fUST/lending_fUST_20251110
["ID","MTS","AMOUNT","RATE_DAILY","PERIOD"]
[393518961,1762752646827,-3316.63897699,0.0002069,2]
[393518962,1762752646887,-7394.44999984,0.0002069,2]
[393518963,1762752647058,-1801.77212347,0.0002069,2]
[393518972,1762752745584,949.0,0.00032,120]
[393518994,1762753146674,502.15016006,0.00032,120]
[393518995,1762753215822,262.0,0.00037035,120]
[393519008,1762753452039,361.78209817,0.00037035,60]
[393519009,1762753483880,157.48487891,0.00019533,7]
[393519010,1762753535627,5000.0,0.00018,2]
[393519011,1762753557630,4768.3551638,0.00018,2]
[393519013,1762753602872,320.01419487,0.00017581,2]
[393519018,1762753719915,3424.07020985,0.0001768,2]
[393519019,1762753749814,1032.47132057,0.0001768,2]
[393519020,1762753787294,179.31729881,0.00019533,7]
[393519058,1762753831681,-174.85669161,0.00018161,2]
[393519060,1762753831691,-503.80659215,0.000186,2]
[393519062,1762753831701,-354.96513043,0.00019533,2]
[393519064,1762753831710,-23.56336185,0.0001962,2]
[393519066,1762753831722,-492.57000915,0.0001962,2]
[393519068,1762753831731,-352.00708768,0.00019828,2]
[393519070,1762753831741,-401.89152068,0.00019828,2]
[393519073,1762753831752,-197.129921,0.0002,2]
[393519075,1762753831761,-206.3308961,0.00020161,2]
[393519077,1762753831771,-3107.2423877,0.00020161,2]
[393519079,1762753831783,-253.99342513,0.00020161,2]
[393519081,1762753831795,-303.26657487,0.00020464,2]
[393519083,1762753831810,-896.73342513,0.00020464,2]
[393519085,1762753831820,-1206.27244867,0.00020465,2]
[393519087,1762753831831,-300.0,0.00020489,2]
[393519089,1762753831840,-500.0,0.00020573,2]
[393519092,1762753831850,-500.0,0.00020573,2]
[393519095,1762753831859,-308.97872217,0.00020573,2]
[393519097,1762753831870,-500.0,0.00020573,2]
[393519099,1762753831879,-2417.28368622,0.00020573,2]
[393519342,1762753837591,-2858.03612991,0.00020573,2]
[393519343,1762753837601,-4890.98288969,0.00020573,2]
[393519344,1762753837611,-500.0,0.00020579,2]
[393519345,1762753837622,-423.66133589,0.00020579,2]
[393519346,1762753837631,-500.0,0.00020579,2]
[393519347,1762753837641,-541.05473667,0.00020579,2]
[393519348,1762753837650,-328.85998126,0.00020579,2]
[393519349,1762753837660,-500.0,0.00020579,2]
[393519350,1762753837670,-303.40096058,0.00020579,2]
[393519351,1762753837680,-394.24029302,0.00020579,2]
[393519352,1762753837690,-371.80458152,0.00020579,2]
[393519353,1762753837700,-721.47,0.0002058,10]
[393519354,1762753837709,-172.367,0.00020589,2]
[393519355,1762753837719,-32745.25296038,0.0002059,2]
[393519411,1762753846091,-396.35565339,0.00019433,2]
[393519413,1762753846100,-601.22,0.0002058,10]
[393519416,1762753846111,-6202.42434653,0.0002059,2]
[393519420,1762753846148,-52864.48563914,0.0002059,2]
[393519448,1762753933782,150.67,0.00037037,30]
[393519449,1762753938827,170.24,0.00032877,120]
[393519450,1762753971657,250.0,0.00017585,3]
[393519451,1762754053148,500.0,0.00037037,60]
[393519452,1762754053372,521.8773082,0.00037037,60]
[393519453,1762754058908,500.0,0.00037037,60]
[393519454,1762754059505,500.0,0.00037037,60]
[393519455,1762754059751,463.05305914,0.00037037,60]
[393519456,1762754061849,500.0,0.00037037,60]
[393519457,1762754062043,500.0,0.00037037,60]
[393519458,1762754062303,344.98604108,0.00037037,60]
[393519459,1762754083194,500.0,0.00037037,60]
[393519460,1762754083426,581.64806952,0.00037037,60]
[393519461,1762754087947,616.9223864,0.00037037,60]
[393519462,1762754088469,500.0,0.00037037,60]
[393519463,1762754088716,500.0,0.00037037,60]
[393519464,1762754088964,307.59259405,0.00037037,60]
[393519465,1762754090690,500.0,0.00037037,60]
[393519466,1762754090924,378.14734824,0.00037037,60]
[393519467,1762754093340,517.8679749,0.00037037,60]
[393519468,1762754102007,500.0,0.00037033,60]
[393519469,1762754102240,383.69,0.00037033,60]
[393519470,1762754105146,500.0,0.00037033,60]
[393519471,1762754105405,500.0,0.00037033,60]
[393519472,1762754105596,500.0,0.00037033,60]
[393519473,1762754105771,519.53143695,0.00037033,60]
[393519474,1762754105954,217.41754823,0.00037033,60]
[393519475,1762754109220,500.0,0.00037033,60]
[393519476,1762754109465,371.25403784,0.00037033,60]
[393519477,1762754114400,500.0,0.00037033,60]
[393519478,1762754114627,500.0,0.00037033,60]
[393519479,1762754114873,628.6295119,0.00037033,60]
[393519480,1762754140165,500.0,0.00037033,60]
[393519481,1762754140770,349.90855042,0.00037033,60]
[393519482,1762754162809,500.0,0.00037033,60]
[393519483,1762754163061,500.0,0.00037033,60]
[393519484,1762754163292,512.70600808,0.00037033,60]
[393519485,1762754171732,500.0,0.00037033,60]
[393519486,1762754171959,500.0,0.00037033,60]
[393519487,1762754172186,500.0,0.00037033,60]
[393519488,1762754172421,500.0,0.00037033,60]
[393519489,1762754172661,415.29501877,0.00037033,60]
[393519490,1762754194190,500.0,0.00037033,60]
[393519491,1762754194454,500.0,0.00037033,60]
[393519492,1762754194819,523.95917995,0.00037033,60]
[393519493,1762754423749,500.0,0.00037033,60]
[393519494,1762754423979,504.89585059,0.00037033,60]
[393519495,1762754427315,500.0,0.00037033,60]
[393519496,1762754427550,500.0,0.00037033,60]
[393519497,1762754427815,500.0,0.00037033,60]
[393519498,1762754428058,500.0,0.00037033,60]
[393519499,1762754428325,500.0,0.00037033,60]
[393519500,1762754428577,510.70033701,0.00037033,60]
[393519501,1762754434804,505.62768802,0.00037033,60]
[393519503,1762754440793,500.0,0.00037033,60]
[393519504,1762754441129,504.3603612,0.00037033,60]
[393519505,1762754441257,518.00269205,0.00037033,60]
[393519506,1762754442890,503.368801,0.00037033,60]
[393519507,1762754442980,500.0,0.00037033,60]
[393519508,1762754443254,500.0,0.00037033,60]
[393519509,1762754443513,500.0,0.00037033,60]
[393519510,1762754443753,500.0,0.00037033,60]
[393519511,1762754443996,500.0,0.00037033,60]
[393519512,1762754444229,634.09384335,0.00037033,60]
[393519513,1762754445115,500.0,0.00037033,60]
[393519514,1762754445506,520.91486013,0.00037033,60]
[393519515,1762754446063,500.0,0.00037033,60]
[393519516,1762754446308,500.0,0.00037033,60]
[393519517,1762754446583,523.51315405,0.00037033,60]
[393519518,1762754449434,500.0,0.00037033,60]
[393519519,1762754449689,517.18272128,0.00037033,60]
[393519520,1762754449782,500.0,0.00037033,60]
[393519521,1762754450023,500.0,0.00037033,60]
[393519522,1762754450280,598.53509026,0.00037033,60]
[393519523,1762754453253,500.0,0.00037033,60]
[393519524,1762754453515,500.0,0.00037033,60]
[393519525,1762754453567,506.80301957,0.00037033,60]
[393519526,1762754454101,554.52858163,0.00037033,60]
[393519527,1762754455701,510.91233568,0.00037033,60]
[393519528,1762754455878,511.32622033,0.00037033,60]
[393519529,1762754457229,504.02307672,0.00037033,60]
[393519530,1762754457969,512.61446499,0.00037033,60]
[393519531,1762754459225,500.0,0.00037033,60]
[393519532,1762754459552,500.0,0.00037033,60]
[393519533,1762754459781,500.0,0.00037033,60]
[393519534,1762754460019,500.0,0.00037033,60]
[393519535,1762754460278,195.58570297,0.00037033,60]
[393519536,1762754464299,502.09997871,0.00037033,60]
[393519537,1762754465823,500.0,0.00037033,60]
[393519538,1762754466057,505.28419529,0.00037033,60]
[393519539,1762754469773,504.9623125,0.00037033,60]
[393519540,1762754470908,500.0,0.00037033,60]
[393519541,1762754471133,507.01,0.00037033,60]
[393519542,1762754473859,500.0,0.00037033,60]
[393519543,1762754475231,500.0,0.00037033,60]
[393519544,1762754475470,500.0,0.00037033,60]
[393519545,1762754475703,522.40352573,0.00037033,60]
[393519546,1762754476264,507.16421607,0.00037033,60]
[393519547,1762754478027,500.74771362,0.00037033,60]
[393519548,1762754479903,502.64278507,0.00037033,60]
[393519549,1762754480630,507.75464814,0.00037033,60]
[393519550,1762754481651,505.21079926,0.00037033,60]
[393519551,1762754482691,503.36114029,0.00037033,60]
[393519552,1762754483887,507.34827992,0.00037033,60]
[393519553,1762754484973,544.26810945,0.00037033,60]
[393519554,1762754485619,502.90501869,0.00037033,60]
[393519555,1762754486623,505.68596087,0.00037033,60]
[393519556,1762754488459,500.0,0.00037033,60]
[393519557,1762754488692,500.0,0.00037033,60]
[393519558,1762754488925,500.0,0.00037033,60]
[393519559,1762754489178,259.36347484,0.00037033,60]
[393519560,1762754490985,575.05692739,0.00037033,60]
[393519561,1762754492894,504.8565523,0.00037033,60]
[393519562,1762754496092,527.29042258,0.00037033,60]
[393519563,1762754498322,503.23417822,0.00037033,60]
[393519564,1762754506978,502.99264057,0.00037033,60]
[393519565,1762754508758,509.25286369,0.00037033,60]
[393519566,1762754513609,502.36945844,0.00037033,60]
[393519567,1762754524077,502.8772199,0.00037033,60]
[393519570,1762754719878,159.51515425,0.00032,120]
[393519599,1762755031828,-334.99035803,0.00017895,2]
[393519601,1762755031838,-381.43069066,0.00018764,2]
[393519603,1762755031847,-228.23516718,0.00018837,2]
[393519605,1762755031857,-137.40868191,0.00019294,2]
[393519609,1762755031887,-34.0248182,0.00019294,2]
[393519611,1762755031897,-507.09164946,0.00020387,2]
[393519665,1762755037774,-1143.24370011,0.00020387,2]
[393519671,1762755039944,-420.0,0.00020387,2]
[393519672,1762755039956,-486.14950717,0.00020387,2]
[393519673,1762755040000,-1000.0,0.00020387,2]
[393519685,1762755042906,-652.86860609,0.00020387,2]
[393519686,1762755043071,-406.55137631,0.00020387,2]
[393519687,1762755043080,-350.8108609,0.000204,2]
[393519688,1762755043090,-300.0,0.00020471,2]
[393519689,1762755043100,-1200.0,0.00020471,2]
[393519690,1762755043110,-6460.36080919,0.00020472,2]
[393519695,1762755046207,-4433.82965793,0.00020472,2]
[393519696,1762755046217,-500.0,0.00020473,2]
[393519697,1762755046227,-500.0,0.00020473,2]
[393519698,1762755046236,-500.0,0.00020473,2]
[393519699,1762755046248,-500.0,0.00020473,2]
[393519700,1762755046258,-500.0,0.00020473,2]
[393519701,1762755046268,-500.0,0.00020486,2]
[393519702,1762755046277,-500.0,0.00020486,2]
[393519703,1762755046287,-500.0,0.00020486,2]
[393519704,1762755046296,-568.03784636,0.00020486,2]
[393519705,1762755046305,-500.0,0.00020486,2]
[393519706,1762755046315,-500.0,0.00020486,2]
[393519707,1762755046324,-500.0,0.00020486,2]
[393519708,1762755046333,-268.67462566,0.00020486,2]
[393519709,1762755046343,-500.0,0.00020486,2]
[393519710,1762755046352,-500.0,0.00020486,2]
[393519711,1762755046361,-500.0,0.00020486,2]
[393519712,1762755046370,-500.0,0.00020486,2]
[393519713,1762755046381,-500.0,0.00020486,2]
[393519714,1762755046390,-500.0,0.00020486,2]
[393519715,1762755046399,-500.0,0.00020486,2]
[393519716,1762755046408,-500.0,0.00020486,2]
[393519717,1762755046418,-500.0,0.00020486,2]
[393519718,1762755046427,-500.0,0.00020486,2]
[393519719,1762755046437,-500.0,0.00020486,2]
[393519720,1762755046446,-500.0,0.00020486,2]
[393519721,1762755046455,-500.0,0.00020486,2]
[393519722,1762755046465,-500.0,0.00020486,2]
[393519723,1762755046474,-500.0,0.00020486,2]
[393519724,1762755046483,-285.87746047,0.00020486,2]
[393519725,1762755046492,-500.0,0.00020486,2]
[393519726,1762755046502,-500.0,0.00020486,2]
[393519727,1762755046511,-500.0,0.00020486,2]
[393519728,1762755046520,-500.0,0.00020486,2]
[393519729,1762755046529,-500.0,0.00020486,2]
[393519730,1762755046538,-500.0,0.00020486,2]
[393519731,1762755046547,-500.0,0.00020486,2]
[393519732,1762755046557,-500.0,0.00020486,2]
[393519733,1762755046566,-166.66,0.00020488,2]
[393519734,1762755046575,-159.04259129,0.00020489,2]
[393519735,1762755046586,-39373.17688004,0.0002049,2]
[393519736,1762755046603,-2662.26723179,0.0002049,2]
[393519738,1762755093680,474.096402,0.00013699,2]
[393519741,1762755116400,508.44390174,0.00032,120]
[393519784,1762756107678,200.0,0.00015,2]
[393519785,1762756108602,6869.9069535,0.00037038,30]
[393519840,1762756232030,-284.62949219,0.00017735,2]
[393519842,1762756232039,-276.14115111,0.00018314,2]
[393519843,1762756232049,-905.0,0.00018668,2]
[393519845,1762756232058,-197.34116185,0.00018668,2]
[393519847,1762756232067,-4.18819495,0.00018668,2]
[393519957,1762756237961,-351.02589638,0.00018668,2]
[393519958,1762756237971,-631.49171793,0.00018668,2]
[393519959,1762756237981,-209.78119051,0.00018668,2]
[393519960,1762756237990,-377.60614293,0.00018668,2]
[393519961,1762756237999,-172.18137916,0.00018915,2]
[393519962,1762756238009,-300.0,0.00019041,2]
[393519963,1762756238018,-300.0,0.00019041,2]
[393519964,1762756238028,-300.0,0.00019041,2]
[393519965,1762756238038,-300.0,0.00019041,2]
[393519966,1762756238048,-300.0,0.00019041,2]
[393519967,1762756238059,-300.0,0.00019041,2]
[393519968,1762756238070,-300.0,0.00019041,2]
[393519969,1762756238082,-300.0,0.00019041,2]
[393519970,1762756238091,-300.0,0.00019041,2]
[393519971,1762756238101,-300.0,0.00019041,2]
[393519972,1762756238111,-300.0,0.00019041,2]
[393519973,1762756238122,-300.0,0.00019041,2]
[393519974,1762756238131,-300.0,0.00019041,2]
[393519975,1762756238141,-300.0,0.00019041,2]
[393519976,1762756238152,-300.0,0.00019041,2]
[393519977,1762756238162,-556.64137607,0.00019163,2]
[393519978,1762756238172,-343.061822,0.00019337,2]
[393519979,1762756238182,-166.9000108,0.00019385,2]
[393519980,1762756238192,-600.0,0.00019545,2]
[393519981,1762756238202,-1200.0,0.0001965,2]
[393519982,1762756238212,-164.0312576,0.000197,2]
[393519983,1762756238222,-162.8117122,0.00019778,2]
[393519984,1762756238231,-300.0,0.00020098,2]
[393519985,1762756238241,-321.7180074,0.000201,2]
[393519986,1762756238252,-164.0312576,0.000201,2]
[393519987,1762756238262,-319.7561374,0.000201,2]
[393519988,1762756238271,-164.0312576,0.00020178,2]
[393519989,1762756238281,-474.096402,0.00020187,2]
[393519990,1762756238290,-7262.79364474,0.000203,2]
[393519991,1762756238299,-500.0,0.00020373,2]
[393519992,1762756238308,-500.0,0.00020373,2]
[393519993,1762756238318,-500.0,0.00020388,2]
[393519994,1762756238327,-500.0,0.00020388,2]
[393519995,1762756238337,-500.0,0.00020388,2]
[393519996,1762756238346,-500.0,0.00020388,2]
[393519997,1762756238451,-500.0,0.00020388,2]
[393519998,1762756238467,-500.0,0.00020388,2]
[393519999,1762756238476,-500.0,0.00020388,2]
[393520000,1762756238486,-276.5,0.00020388,2]
[393520001,1762756238495,-500.0,0.00020388,2]
[393520002,1762756238509,-500.0,0.00020388,2]
[393520003,1762756238519,-500.0,0.00020388,2]
[393520004,1762756238528,-500.0,0.00020388,2]
[393520005,1762756238537,-500.0,0.00020388,2]
[393520006,1762756238547,-500.0,0.00020388,2]
[393520007,1762756238556,-500.0,0.00020388,2]
[393520008,1762756238565,-500.0,0.00020388,2]
[393520009,1762756238575,-500.0,0.00020388,2]
[393520010,1762756238586,-500.0,0.00020388,2]
[393520011,1762756238596,-500.0,0.00020388,2]
[393520012,1762756238606,-500.0,0.00020388,2]
[393520013,1762756238615,-500.0,0.00020388,2]
[393520014,1762756238625,-500.0,0.00020388,2]
[393520015,1762756238635,-500.0,0.00020388,2]
[393520016,1762756238646,-500.0,0.00020388,2]
[393520017,1762756238656,-500.0,0.00020388,2]
[393520018,1762756238666,-500.0,0.00020388,2]
[393520019,1762756238676,-500.0,0.00020388,2]
[393520020,1762756238686,-500.0,0.00020388,2]
[393520021,1762756238696,-500.0,0.00020388,2]
[393520022,1762756238706,-500.0,0.00020388,2]
[393520023,1762756238716,-500.0,0.00020388,2]
[393520024,1762756238726,-500.0,0.00020388,2]
[393520025,1762756238736,-500.0,0.00020388,2]
[393520026,1762756238745,-500.0,0.00020388,2]
[393520027,1762756238755,-500.0,0.00020388,2]
[393520028,1762756238765,-500.0,0.00020388,2]
[393520029,1762756238775,-500.0,0.00020388,2]
[393520030,1762756238784,-500.0,0.00020388,2]
[393520031,1762756238794,-313.75780277,0.00020388,2]
[393520032,1762756238803,-500.0,0.00020388,2]
[393520033,1762756238812,-500.0,0.00020388,2]
[393520034,1762756238822,-500.0,0.00020388,2]
[393520035,1762756238831,-500.0,0.00020388,2]
[393520036,1762756238840,-500.0,0.00020388,2]
[393520037,1762756238850,-500.0,0.00020388,2]
[393520038,1762756238860,-500.0,0.00020388,2]
[393520039,1762756238869,-500.0,0.00020388,2]
[393520040,1762756238879,-500.0,0.00020388,2]
[393520041,1762756238888,-500.0,0.00020388,2]
[393520042,1762756238899,-200.0,0.00020388,2]
[393520043,1762756238908,-500.0,0.00020388,2]
[393520044,1762756238917,-500.0,0.00020388,2]
[393520045,1762756238927,-500.0,0.00020388,2]
[393520046,1762756238936,-500.0,0.00020388,2]
[393520047,1762756238946,-500.0,0.00020388,2]
[393520048,1762756238956,-500.0,0.00020388,2]
[393520049,1762756238967,-500.0,0.00020388,2]
[393520050,1762756238977,-500.0,0.00020388,2]
[393520051,1762756238986,-500.0,0.00020388,2]
[393520052,1762756238996,-500.0,0.00020388,2]
[393520053,1762756239007,-370.9093762,0.00020388,2]
[393520067,1762756243149,-164.0312576,0.00020178,2]
[393520068,1762756243159,-129.0906238,0.00020388,2]
[393520069,1762756243168,-500.0,0.00020388,2]
[393520070,1762756243178,-396.65173919,0.00020388,2]
[393520071,1762756243324,-103.34826081,0.00020388,2]
[393520072,1762756243334,-500.0,0.00020388,2]
[393520073,1762756243343,-500.0,0.00020388,2]
[393520074,1762756243353,-500.0,0.00020388,2]
[393520075,1762756243363,-500.0,0.00020388,2]
[393520076,1762756243372,-500.0,0.00020388,2]
[393520077,1762756243382,-500.0,0.00020388,2]
[393520078,1762756243391,-500.0,0.00020388,2]
[393520079,1762756243401,-500.0,0.00020388,2]
[393520080,1762756243412,-500.0,0.00020388,2]
[393520081,1762756243422,-500.0,0.00020388,2]
[393520082,1762756243431,-650.0,0.00020388,2]
[393520083,1762756243441,-500.0,0.00020389,2]
[393520084,1762756243451,-151.0,0.0002039,7]
[393520085,1762756243460,-151.0,0.0002039,7]
[393520086,1762756243470,-151.0,0.0002039,7]
[393520087,1762756243479,-920.90965,0.0002039,7]
[393520088,1762756243489,-920.90965,0.0002039,7]
[393520089,1762756243498,-920.90965,0.0002039,7]
[393520090,1762756243512,-920.90965,0.0002039,7]
[393520091,1762756243521,-151.0,0.0002039,7]
[393520092,1762756243530,-151.0,0.0002039,7]
[393520093,1762756243540,-151.0,0.0002039,7]
[393520094,1762756243550,-151.0,0.0002039,7]
[393520095,1762756243559,-165.691456,0.0002039,7]
[393520096,1762756243568,-395.436153,0.0002039,7]
[393520097,1762756243580,-395.436153,0.0002039,7]
[393520098,1762756243589,-395.436153,0.0002039,7]
[393520099,1762756243598,-156.051575,0.0002039,7]
[393520100,1762756243607,-395.436153,0.0002039,7]
[393520101,1762756243616,-171.370662,0.0002039,7]
[393520102,1762756243625,-151.0,0.0002039,2]
[393520103,1762756243635,-10000.0,0.0002039,7]
[393520104,1762756243645,-10000.0,0.0002039,7]
[393520105,1762756243654,-151.0,0.0002039,7]
[393520106,1762756243663,-10000.0,0.0002039,7]
[393520107,1762756243672,-10000.0,0.0002039,7]
[393520108,1762756243681,-9701.95977519,0.0002039,7]
[393520109,1762756243693,-298.04022481,0.0002039,7]
[393520110,1762756243702,-10000.0,0.0002039,7]
[393520111,1762756243711,-151.0,0.0002039,7]
[393520112,1762756243720,-151.0,0.0002039,7]
[393520113,1762756243729,-497.14238106,0.0002039,7]
[393520114,1762756243739,-3448.94728058,0.0002039,7]
[393520115,1762756243750,-560.0,0.0002039,7]
[393520124,1762756246399,-1533.78185648,0.0002039,7]
[393520125,1762756246519,-3960.12848188,0.0002039,7]
[393520126,1762756246529,-151.0,0.0002039,7]
[393520127,1762756246538,-151.0,0.0002039,7]
[393520128,1762756246548,-151.0,0.0002039,7]
[393520129,1762756246557,-151.0,0.0002039,7]
[393520130,1762756246566,-151.0,0.0002039,7]
[393520131,1762756246576,-227.820181,0.0002039,7]
[393520132,1762756246588,-151.0,0.0002039,7]
[393520133,1762756246597,-372.905783,0.0002039,7]
[393520134,1762756246606,-203.004346,0.0002039,7]
[393520135,1762756246615,-372.905783,0.0002039,7]
[393520136,1762756246624,-203.004346,0.0002039,7]
[393520137,1762756246633,-372.905783,0.0002039,7]
[393520138,1762756246642,-203.004346,0.0002039,7]
[393520139,1762756246651,-372.905783,0.0002039,7]
[393520140,1762756246660,-319.506378,0.0002039,7]
[393520141,1762756246669,-152.21817653,0.0002039,7]
[393520142,1762756246681,-50.78616947,0.0002039,7]
[393520144,1762756246690,-319.506378,0.0002039,7]
[393520146,1762756246699,-319.506378,0.0002039,7]
[393520148,1762756246709,-319.506378,0.0002039,7]
[393520149,1762756246718,-319.506378,0.0002039,7]
[393520150,1762756246727,-119.49793243,0.0002039,7]
[393520151,1762756246745,-200.00844557,0.0002039,7]
[393520152,1762756246754,-319.506378,0.0002039,7]
[393520153,1762756246763,-319.506378,0.0002039,7]
[393520154,1762756246773,-319.506378,0.0002039,7]
[393520155,1762756246782,-319.506378,0.0002039,7]
[393520156,1762756246791,-319.506378,0.0002039,7]
[393520157,1762756246800,-319.506378,0.0002039,7]
[393520158,1762756246810,-151.0,0.0002039,7]
[393520159,1762756246819,-255.783187,0.0002039,7]
[393520160,1762756246829,-151.0,0.0002039,7]
[393520161,1762756246837,-151.0,0.0002039,7]
[393520162,1762756246847,-151.0,0.0002039,7]
[393520163,1762756246856,-151.0,0.0002039,7]
[393520164,1762756246949,-153.237822,0.0002039,7]
[393520165,1762756246958,-508.834042,0.0002039,7]
[393520166,1762756246967,-508.834042,0.0002039,7]
[393520167,1762756246976,-210.271141,0.0002039,7]
[393520168,1762756246985,-151.0,0.0002039,7]
[393520169,1762756246994,-508.834042,0.0002039,7]
[393520170,1762756247003,-151.0,0.0002039,7]
[393520171,1762756247013,-197.23438,0.0002039,7]
[393520172,1762756247022,-508.834042,0.0002039,7]
[393520173,1762756247031,-7423.0640937,0.0002039,2]
[393520174,1762756247043,-2551.31570217,0.0002039,2]
[393520175,1762756532373,207.7,0.00032876,120]
[393520176,1762756557870,212.81624925,0.00019533,3]
[393520178,1762756651615,404.31728195,0.00037036,60]
[393520212,1762757432289,-193.57144068,0.00019058,2]
[393520213,1762757432299,-632.05,0.00019058,2]
[393520214,1762757432310,-178.12356298,0.0001922,2]
[393520215,1762757432320,-46.35499634,0.00019799,2]
[393520217,1762757432352,-253.64500366,0.00019799,2]
[393520219,1762757432362,-1200.0,0.00019799,2]
[393520221,1762757432372,-565.93399839,0.000198,2]
[393520223,1762757432381,-5488.61244852,0.000198,2]
[393520225,1762757432390,-500.0,0.00019873,2]
[393520227,1762757432400,-500.0,0.00019873,2]
[393520229,1762757432410,-504.32276064,0.00019873,2]
[393520231,1762757432419,-500.0,0.00019873,2]
[393520234,1762757432429,-500.0,0.00019873,2]
[393520237,1762757432438,-500.0,0.00019873,2]
[393520240,1762757432448,-500.0,0.00019873,2]
[393520242,1762757432457,-555.69,0.0001988,3]
[393520244,1762757432467,-163.59307636,0.00019889,2]
[393520246,1762757432476,-500.0,0.00019889,2]
[393520248,1762757432485,-500.0,0.00019889,2]
[393520250,1762757432494,-500.0,0.00019889,2]
[393520251,1762757432504,-500.0,0.00019889,2]
[393520254,1762757432519,-500.0,0.00019889,2]
[393520256,1762757432529,-500.0,0.00019889,2]
[393520257,1762757432538,-500.0,0.00019889,2]
[393520260,1762757432548,-500.0,0.00019889,2]
[393520262,1762757432557,-500.0,0.00019889,2]
[393520263,1762757432568,-500.0,0.00019889,2]
[393520264,1762757432579,-551.5,0.00019889,2]
[393520266,1762757432588,-322.5,0.00019889,2]
[393520268,1762757432597,-500.0,0.00019889,2]
[393520270,1762757432607,-500.0,0.00019889,2]
[393520272,1762757432617,-500.0,0.00019889,2]
[393520274,1762757432627,-500.0,0.00019889,2]
[393520276,1762757432637,-500.0,0.00019889,2]
[393520278,1762757432647,-500.0,0.00019889,2]
[393520280,1762757432656,-500.0,0.00019889,2]
[393520282,1762757432666,-636.3901685,0.00019889,2]
[393520284,1762757432679,-500.0,0.00019889,2]
[393520285,1762757432689,-500.0,0.00019889,2]
[393520286,1762757432699,-13327.17334687,0.0001989,2]
[393520295,1762757438311,-998.80874545,0.0001989,2]
[393520296,1762757438323,-361.38785434,0.0001989,2]
[393520297,1762757438375,-408979.99999998,0.0001989,2]
[393520301,1762757440475,-41781.43666697,0.0001989,2]
[393520302,1762757440488,-3016.03651685,0.0001989,2]
[393520303,1762757440499,-1733.61004941,0.0001989,2]
[393520330,1762757443353,-27318.10106274,0.0001989,2]
[393520331,1762757443527,-555.69,0.0001989,2]
[393520332,1762757443539,-5625.1242614,0.0001989,2]
[393520333,1762757443550,-6306.10000004,0.0001989,2]
[393520334,1762757443561,-10018.34124936,0.0001989,2]
[393520359,1762757446599,-998.43877486,0.0001989,2]
[393520362,1762757958832,470.09,0.00037062,30]
[393520368,1762758261704,426.686761,0.00013699,2]
[393520378,1762758468443,5000.0,0.00017681,2]
[393520379,1762758476474,2866.75551643,0.00017681,2]
[393520380,1762758476496,2133.24448357,0.00017681,2]
[393520381,1762758477218,1517.0,0.00017681,2]
[393520382,1762758492175,2971.85436394,0.00017681,2]
[393520383,1762758499970,1214.77552251,0.00017681,2]
[393520430,1762758632479,-171.530911,0.00017902,2]
[393520432,1762758632491,-670.0724897,0.00018,2]
[393520434,1762758632503,-1410.72508389,0.00018,2]
[393520436,1762758632514,-4575.90959405,0.00018,2]